[Event "ESTCC-50 2025"]
[Site "Swidnica"]
[Date "2025.04.12"]
[Round "8.1"]
[White "Adams, Michael"]
[Black "Bischoff, Klaus"]
[Result "1-0"]
[Annotator "ChessBase"]
[ECO "B50"]
[WhiteElo "2661"]
[BlackElo "2425"]
[PlyCount "77"]
[EventDate "2025.04.05"]
[EventType "team-tourn"]
[EventCountry "POL"]
[SourceTitle "playchess.com"]
[Source "ChessBase"]
[SourceQuality "1"]
[WhiteTeam "England"]
[BlackTeam "Germany"]
[WhiteTeamCountry "ENG"]
[BlackTeamCountry "GER"]
[TimeControl "40/5400+30:1800+30"]

1. e4 {[%emt 0:00:03]} c5 {[%emt 0:00:13]} 2. Nf3 {[%emt 0:00:08]} d6 {[%emt 0:00:09]} 3. Nc3 {[%emt 0:01:26]} Nf6 {[%emt 0:00:40]} 4. d4 {[%emt 0:00:57]} cxd4 {[%emt 0:00:15]} 5. Qxd4 {[%emt 0:00:13]} a6 {[%emt 0:05:06]} 6. Nd5 {[%emt 0:04:21]} Nc6 {[%emt 0:02:09]} 7. Qe3 {[%emt 0:02:47]} Nd7 {[%emt 0:09:13]} 8. Bd2 {[%emt 0:11:02]} e6 {[%emt 0:01:36]} 9. Nf4 {[%emt 0:01:31]} Be7 {[%emt 0:01:27]} 10. O-O-O {[%emt 0:01:55]} O-O {[%emt 0:01:57]} 11. h4 {[%emt 0:03:33]} b5 {[%emt 0:03:35]} 12. Nh5 {[%emt 0:05:54]} Qb6 {[%emt 0:16:47]} 13. Qf4 {[%emt 0:12:30]} e5 {[%emt 0:00:54]} 14. Qg3 {[%emt 0:01:14]} g6 {[%emt 0:00:07]} 15. Ng5 {[%emt 0:09:16]} Nc5 {[%emt 0:04:14]} 16. Re1 {[%emt 0:09:28]} f5 {[%emt 0:05:29]} 17. f4 {[%emt 0:10:14]} fxe4 {[%emt 0:04:27]} 18. fxe5 {[%emt 0:04:09]} dxe5 {[%emt 0:05:00]} 19. Be2 {[%emt 0:04:02]} Qc7 {[%emt 0:09:24]} 20. Nxh7 {[%emt 0:07:13]} Kxh7 {[%emt 0:00:22]} 21. Qe3 {[%emt 0:00:05]} Rf4 {[%emt 0:00:44]} 22. Nxf4 {[%emt 0:00:05]} exf4 {[%emt 0:01:34]} 23. Qxf4 {[%emt 0:00:04]} Qxf4 {[%emt 0:01:07]} 24. Bxf4 {[%emt 0:00:02]} Nd4 {[%emt 0:01:36]} 25. Bd1 {[%emt 0:01:32]} Bb7 {[%emt 0:00:16]} 26. h5 {[%emt 0:00:47]} g5 {[%emt 0:00:24]} 27. Be3 {[%emt 0:00:08]} Nf5 {[%emt 0:00:39]} 28. Rhf1 {[%emt 0:00:30]} Rf8 {[%emt 0:00:31]} 29. Bg1 {[%emt 0:01:24]} Ng3 {[%emt 0:01:37]} 30. Rxf8 {[%emt 0:00:13]} Bxf8 {[%emt 0:00:03]} 31. Bg4 {[%emt 0:01:39]} Bc6 {[%emt 0:06:32]} 32. Rd1 {[%emt 0:00:55]} e3 {[%emt 0:02:15]} 33. Bxe3 {[%emt 0:00:27]} Nce4 {[%emt 0:00:25]} 34. Rd8 {[%emt 0:02:26]} Bg7 {[%emt 0:00:29]} 35. Bf3 {[%emt 0:00:52]} Nf5 {[%emt 0:01:15]} 36. Bxg5 {[%emt 0:00:56]} Nd4 {[%emt 0:00:39]} 37. h6 {[%emt 0:01:15]} Nxf3 {[%emt 0:02:11]} 38. hxg7 {[%emt 0:00:25]} Kxg7 {[%emt 0:00:08]} 39. Bh6+ {[%emt 0:00:36]} 1-0

[Event "ESTCC-50 2025"]
[Site "Swidnica"]
[Date "2025.04.12"]
[Round "8.2"]
[White "Holzke, Frank"]
[Black "Emms, John M"]
[Result "0-1"]
[Annotator "ChessBase"]
[ECO "C89"]
[WhiteElo "2412"]
[BlackElo "2411"]
[PlyCount "112"]
[EventDate "2025.04.05"]
[EventType "team-tourn"]
[EventCountry "POL"]
[SourceTitle "playchess.com"]
[Source "ChessBase"]
[SourceQuality "1"]
[WhiteTeam "Germany"]
[BlackTeam "England"]
[WhiteTeamCountry "GER"]
[BlackTeamCountry "ENG"]
[TimeControl "40/5400+30:1800+30"]

1. e4 {[%emt 0:00:11]} e5 {[%emt 0:00:32]} 2. Nf3 {[%emt 0:00:13]} Nc6 {[%emt 0:00:11]} 3. Bb5 {[%emt 0:00:15]} a6 {[%emt 0:00:13]} 4. Ba4 {[%emt 0:00:07]} Nf6 {[%emt 0:00:11]} 5. O-O {[%emt 0:00:13]} Be7 {[%emt 0:00:46]} 6. Re1 {[%emt 0:00:20]} b5 {[%emt 0:00:12]} 7. Bb3 {[%emt 0:00:12]} O-O {[%emt 0:00:26]} 8. c3 {[%emt 0:00:16]} d5 {[%emt 0:01:20]} 9. d4 {[%emt 0:00:14]} exd4 {[%emt 0:05:19]} 10. e5 {[%emt 0:01:07]} Ne4 {[%emt 0:00:16]} 11. cxd4 {[%emt 0:02:07]} Bf5 {[%emt 0:08:20]} 12. Bd2 {[%emt 0:09:10]} Qd7 {[%emt 0:11:17]} 13. Nc3 {[%emt 0:06:40]} Nxc3 {[%emt 0:02:11]} 14. Bxc3 {[%emt 0:00:38]} Nd8 {[%emt 0:16:15]} 15. h3 {[%emt 0:03:30]} Ne6 {[%emt 0:06:26]} 16. Ba5 {[%emt 0:01:51]} Rac8 {[%emt 0:03:40]} 17. Bc2 {[%emt 0:11:56]} Bxc2 {[%emt 0:04:41]} 18. Qxc2 {[%emt 0:00:13]} c5 {[%emt 0:01:55]} 19. dxc5 {[%emt 0:00:32]} Bxc5 {[%emt 0:00:04]} 20. Qd2 {[%emt 0:03:59]} d4 {[%emt 0:06:21]} 21. Rad1 {[%emt 0:05:32]} h6 {[%emt 0:02:21]} 22. b3 {[%emt 0:05:36]} Qb7 {[%emt 0:02:59]} 23. Bb4 {[%emt 0:12:50]} Rfd8 {[%emt 0:01:01]} 24. Bxc5 {[%emt 0:01:18]} Rxc5 {[%emt 0:00:15]} 25. Qd3 {[%emt 0:01:16]} Rc3 {[%emt 0:05:49]} 26. Qf5 {[%emt 0:00:49]} Qc7 {[%emt 0:08:07]} 27. Rd2 {[%emt 0:03:42]} Rc1 28. Rxc1 {[%emt 0:01:23]} Qxc1+ {[%emt 0:01:48]} 29. Kh2 {[%emt 0:00:08]} Qc5 {[%emt 0:02:58]} 30. Qe4 {[%emt 0:03:58]} Qd5 {[%emt 0:02:49]} 31. Qxd5 {[%emt 0:00:43]} Rxd5 {[%emt 0:00:02]} 32. g3 {[%emt 0:02:27]} g5 {[%emt 0:00:35]} 33. b4 {[%emt 0:02:11]} Kg7 {[%emt 0:01:15]} 34. Rd3 {[%emt 0:02:40]} h5 {[%emt 0:00:42]} 35. h4 {[%emt 0:05:42]} g4 {[%emt 0:00:39]} 36. Ng5 {[%emt 0:00:10]} Rxe5 {[%emt 0:02:43]} 37. Nxe6+ {[%emt 0:00:19]} Rxe6 {[%emt 0:00:15]} 38. Rxd4 {[%emt 0:00:08]} Re2 {[%emt 0:00:28]} 39. Kg2 {[%emt 0:00:50]} Rxa2 {[%emt 0:00:15]} 40. Rd6 {[%emt 0:00:00]} f6 {[%emt 0:00:00]} 41. Rd7+ {[%emt 0:04:59]} Kg6 {[%emt 0:01:33]} 42. Rd6 {[%emt 0:00:13]} Ra4 {[%emt 0:05:03]} 43. Rc6 {[%emt 0:01:05]} Rxb4 {[%emt 0:02:53]} 44. Rxa6 {[%emt 0:00:07]} Rb1 {[%emt 0:01:02]} 45. Rb6 {[%emt 0:02:06]} b4 {[%emt 0:05:35]} 46. Kh2 {[%emt 0:02:58]} b3 {[%emt 0:03:15]} 47. Kg2 {[%emt 0:00:38]} Rb2 {[%emt 0:06:37]} 48. Kg1 {[%emt 0:23:47]} Kf5 {[%emt 0:00:58]} 49. Kg2 {[%emt 0:00:08]} Ke4 {[%emt 0:02:52]} 50. Rb4+ {[%emt 0:08:41]} Kd3 {[%emt 0:00:45]} 51. Rb5 {[%emt 0:00:06]} Kc4 {[%emt 0:02:22]} 52. Rxh5 {[%emt 0:00:12]} Rd2 {[%emt 0:00:43]} 53. Rh8 {[%emt 0:05:49]} Rd5 {[%emt 0:00:54]} 54. Rc8+ {[%emt 0:00:44]} Kb4 {[%emt 0:02:23]} 55. Rc1 {[%emt 0:00:26]} b2 {[%emt 0:00:34]} 56. Rh1 {[%emt 0:00:27]} Rc5 {[%emt 0:01:16]} 0-1

[Event "ESTCC-50 2025"]
[Site "Swidnica"]
[Date "2025.04.12"]
[Round "8.3"]
[White "Flear, Glenn C"]
[Black "Boensch, Uwe"]
[Result "1/2-1/2"]
[Annotator "ChessBase"]
[ECO "D35"]
[WhiteElo "2366"]
[BlackElo "2465"]
[PlyCount "95"]
[EventDate "2025.04.05"]
[EventType "team-tourn"]
[EventCountry "POL"]
[SourceTitle "playchess.com"]
[Source "ChessBase"]
[SourceQuality "1"]
[WhiteTeam "England"]
[BlackTeam "Germany"]
[WhiteTeamCountry "ENG"]
[BlackTeamCountry "GER"]
[TimeControl "40/5400+30:1800+30"]

1. d4 {[%emt 0:00:05]} Nf6 {[%emt 0:00:09]} 2. c4 {[%emt 0:00:08]} e6 {[%emt 0:00:05]} 3. Nc3 {[%emt 0:00:34]} d5 {[%emt 0:00:05]} 4. cxd5 {[%emt 0:00:15]} exd5 {[%emt 0:00:03]} 5. Bg5 {[%emt 0:00:14]} c6 {[%emt 0:00:02]} 6. e3 {[%emt 0:00:21]} h6 {[%emt 0:00:03]} 7. Bh4 {[%emt 0:00:59]} Be7 {[%emt 0:00:03]} 8. Bd3 {[%emt 0:00:35]} Nbd7 {[%emt 0:00:04]} 9. Qc2 {[%emt 0:01:55]} O-O {[%emt 0:00:04]} 10. Nge2 {[%emt 0:14:23]} Re8 {[%emt 0:00:05]} 11. f3 {[%emt 0:01:00]} b5 {[%emt 0:00:34]} 12. O-O {[%emt 0:04:20]} a6 {[%emt 0:00:14]} 13. Rac1 {[%emt 0:10:34]} c5 {[%emt 0:08:46]} 14. dxc5 {[%emt 0:15:23]} Nxc5 {[%emt 0:04:47]} 15. Bxf6 {[%emt 0:01:52]} Bxf6 {[%emt 0:00:09]} 16. Bh7+ {[%emt 0:00:31]} Kh8 {[%emt 0:00:11]} 17. Rfd1 {[%emt 0:00:56]} Be6 {[%emt 0:09:26]} 18. Nxd5 {[%emt 0:05:38]} Rc8 {[%emt 0:01:14]} 19. Bf5 {[%emt 0:05:20]} Bxb2 {[%emt 0:10:00]} 20. Bxe6 {[%emt 0:08:12]} fxe6 {[%emt 0:00:18]} 21. Qxb2 {[%emt 0:01:04]} exd5 {[%emt 0:00:03]} 22. Nf4 {[%emt 0:00:59]} Na4 {[%emt 0:06:28]} 23. Qd4 {[%emt 0:11:03]} Qb6 {[%emt 0:00:27]} 24. Rxc8 {[%emt 0:04:17]} Rxc8 {[%emt 0:00:02]} 25. Nxd5 {[%emt 0:00:43]} Qxd4 {[%emt 0:00:21]} 26. exd4 {[%emt 0:01:36]} a5 {[%emt 0:05:39]} 27. Rd2 {[%emt 0:00:29]} b4 {[%emt 0:00:47]} 28. Kf2 {[%emt 0:00:20]} Rd8 {[%emt 0:10:27]} 29. Ne3 {[%emt 0:00:22]} Nc3 {[%emt 0:00:05]} 30. d5 {[%emt 0:01:45]} Kg8 {[%emt 0:01:35]} 31. d6 {[%emt 0:00:54]} a4 {[%emt 0:06:05]} 32. Nc4 {[%emt 0:01:04]} a3 {[%emt 0:15:59]} 33. d7 {[%emt 0:02:52]} b3 {[%emt 0:00:44]} 34. Nxa3 {[%emt 0:00:19]} bxa2 {[%emt 0:01:02]} 35. Nc2 {[%emt 0:00:07]} Kf7 {[%emt 0:00:57]} 36. Na1 {[%emt 0:03:13]} Ke7 {[%emt 0:03:56]} 37. Rc2 {[%emt 0:00:12]} Nd5 {[%emt 0:05:38]} 38. Rxa2 {[%emt 0:00:16]} Rxd7 {[%emt 0:00:07]} 39. Nb3 {[%emt 0:00:27]} Nf6 {[%emt 0:01:38]} 40. Nc5 {[%emt 0:00:00]} Rc7 {[%emt 0:00:00]} 41. Re2+ {[%emt 0:03:21]} Kf7 {[%emt 0:01:14]} 42. Nd3 {[%emt 0:02:19]} Nd7 {[%emt 0:00:16]} 43. g4 {[%emt 0:02:09]} Rc3 {[%emt 0:00:57]} 44. Nf4 {[%emt 0:02:35]} Ra3 {[%emt 0:02:03]} 45. Rc2 {[%emt 0:03:12]} Ne5 {[%emt 0:00:57]} 46. Rc7+ {[%emt 0:00:42]} Kg8 {[%emt 0:01:20]} 47. Ne6 {[%emt 0:01:18]} Rxf3+ {[%emt 0:00:15]} 48. Kg2 {[%emt 0:01:29]} 1/2-1/2

[Event "ESTCC-50 2025"]
[Site "Swidnica"]
[Date "2025.04.12"]
[Round "8.4"]
[White "Tischbierek, Raj"]
[Black "Davies, Nigel R"]
[Result "1/2-1/2"]
[Annotator "ChessBase"]
[ECO "B41"]
[WhiteElo "2418"]
[BlackElo "2309"]
[PlyCount "75"]
[EventDate "2025.04.05"]
[EventType "team-tourn"]
[EventCountry "POL"]
[SourceTitle "playchess.com"]
[Source "ChessBase"]
[SourceQuality "1"]
[WhiteTeam "Germany"]
[BlackTeam "England"]
[WhiteTeamCountry "GER"]
[BlackTeamCountry "ENG"]
[TimeControl "40/5400+30:1800+30"]

1. e4 c5 {[%emt 0:00:15]} 2. Nf3 {[%emt 0:00:31]} e6 {[%emt 0:00:10]} 3. d4 {[%emt 0:00:20]} cxd4 {[%emt 0:00:09]} 4. Nxd4 {[%emt 0:00:07]} a6 {[%emt 0:00:07]} 5. c4 {[%emt 0:00:44]} Nf6 {[%emt 0:00:16]} 6. Nc3 {[%emt 0:00:06]} Qc7 {[%emt 0:00:09]} 7. a3 {[%emt 0:00:08]} b6 {[%emt 0:00:07]} 8. Be3 {[%emt 0:00:37]} Bb7 {[%emt 0:00:10]} 9. f3 {[%emt 0:00:15]} Be7 {[%emt 0:00:15]} 10. Be2 {[%emt 0:00:48]} O-O {[%emt 0:00:13]} 11. O-O {[%emt 0:00:36]} d6 {[%emt 0:00:12]} 12. Qd2 {[%emt 0:02:04]} Nbd7 {[%emt 0:00:16]} 13. Rfc1 {[%emt 0:00:13]} Rac8 {[%emt 0:00:42]} 14. b4 {[%emt 0:00:42]} Qb8 {[%emt 0:00:29]} 15. Bf1 {[%emt 0:04:09]} Rfe8 {[%emt 0:05:02]} 16. Kh1 {[%emt 0:09:45]} h5 {[%emt 0:03:25]} 17. h4 {[%emt 0:06:14]} Nh7 {[%emt 0:21:39]} 18. Qf2 {[%emt 0:10:58]} Bd8 {[%emt 0:02:15]} 19. Rab1 {[%emt 0:12:56]} Nhf8 {[%emt 0:02:43]} 20. Bg5 {[%emt 0:08:08]} Nh7 {[%emt 0:10:10]} 21. Bxd8 {[%emt 0:00:53]} Rexd8 {[%emt 0:00:14]} 22. Nb3 {[%emt 0:05:11]} Nhf6 {[%emt 0:00:51]} 23. a4 {[%emt 0:02:50]} d5 {[%emt 0:01:42]} 24. exd5 {[%emt 0:04:14]} exd5 {[%emt 0:00:10]} 25. c5 {[%emt 0:00:47]} bxc5 {[%emt 0:02:14]} 26. Nxc5 {[%emt 0:02:43]} Nxc5 {[%emt 0:02:15]} 27. bxc5 {[%emt 0:00:03]} Qc7 {[%emt 0:08:05]} 28. Ne2 {[%emt 0:02:04]} Bc6 {[%emt 0:00:19]} 29. Qd4 {[%emt 0:06:25]} Qa5 {[%emt 0:02:51]} 30. Rb4 {[%emt 0:09:01]} Rb8 {[%emt 0:04:05]} 31. Rb6 {[%emt 0:02:32]} Qxa4 {[%emt 0:00:15]} 32. Qxa4 {[%emt 0:03:35]} Bxa4 {[%emt 0:00:10]} 33. Rxa6 {[%emt 0:02:17]} Bb5 {[%emt 0:00:33]} 34. Ra5 {[%emt 0:00:42]} Bxe2 {[%emt 0:11:50]} 35. Bxe2 {[%emt 0:00:09]} Rb7 {[%emt 0:00:53]} 36. Kg1 {[%emt 0:00:59]} Rc7 {[%emt 0:00:11]} 37. Kf2 {[%emt 0:00:22]} Kf8 {[%emt 0:07:11]} 38. Bd3 {[%emt 0:00:51]} 1/2-1/2

[Event "ESTCC-50 2025"]
[Site "Swidnica"]
[Date "2025.04.12"]
[Round "8.5"]
[White "Buckley, Graeme N"]
[Black "Zeidler, Sven P."]
[Result "1-0"]
[Annotator "ChessBase"]
[ECO "B00"]
[WhiteElo "2268"]
[BlackElo "2143"]
[PlyCount "59"]
[EventDate "2025.04.05"]
[EventType "team-tourn"]
[EventCountry "POL"]
[SourceTitle "playchess.com"]
[Source "ChessBase"]
[SourceQuality "1"]
[WhiteTeam "England"]
[BlackTeam "Wales"]
[WhiteTeamCountry "ENG"]
[BlackTeamCountry "WLS"]
[TimeControl "40/5400+30:1800+30"]

1. e4 {[%emt 0:00:04]} Nc6 {[%emt 0:00:05]} 2. Nf3 {[%emt 0:00:09]} d6 {[%emt 0:00:06]} 3. d4 {[%emt 0:00:06]} Nf6 {[%emt 0:00:05]} 4. Nc3 {[%emt 0:00:06]} g6 {[%emt 0:00:06]} 5. Be3 {[%emt 0:00:07]} Bg7 {[%emt 0:00:06]} 6. Qd2 {[%emt 0:00:22]} O-O {[%emt 0:00:07]} 7. O-O-O {[%emt 0:00:16]} Bg4 {[%emt 0:00:10]} 8. Qe2 {[%emt 0:00:42]} a6 {[%emt 0:11:01]} 9. h3 {[%emt 0:02:08]} Bd7 {[%emt 0:00:42]} 10. e5 {[%emt 0:11:36]} Ne8 {[%emt 0:00:37]} 11. Bf4 {[%emt 0:08:25]} b5 {[%emt 0:17:54]} 12. Qe3 {[%emt 0:04:40]} Qb8 {[%emt 0:08:05]} 13. Bh6 {[%emt 0:05:03]} Qb6 {[%emt 0:03:23]} 14. g4 {[%emt 0:23:37]} b4 {[%emt 0:19:42]} 15. Nd5 {[%emt 0:01:45]} Qa5 {[%emt 0:00:38]} 16. Bc4 {[%emt 0:00:38]} Be6 {[%emt 0:04:33]} 17. Bxg7 {[%emt 0:03:28]} Kxg7 {[%emt 0:00:45]} 18. Qe4 {[%emt 0:09:34]} Rd8 {[%emt 0:07:31]} 19. Ng5 {[%emt 0:02:48]} Bd7 {[%emt 0:08:50]} 20. h4 {[%emt 0:12:25]} e6 {[%emt 0:05:24]} 21. Nf6 {[%emt 0:06:38]} d5 {[%emt 0:00:43]} 22. Qf4 {[%emt 0:01:18]} dxc4 {[%emt 0:01:49]} 23. h5 {[%emt 0:00:08]} h6 {[%emt 0:07:52]} 24. hxg6 {[%emt 0:01:55]} fxg6 {[%emt 0:00:22]} 25. Rxh6 {[%emt 0:01:07]} Nxf6 {[%emt 0:01:42]} 26. exf6+ {[%emt 0:00:52]} Rxf6 {[%emt 0:00:32]} 27. Rh7+ {[%emt 0:00:29]} Kg8 {[%emt 0:00:04]} 28. Qxf6 {[%emt 0:01:00]} Qxg5+ {[%emt 0:00:13]} 29. Qxg5 {[%emt 0:00:07]} Kxh7 {[%emt 0:00:05]} 30. Qf6 {[%emt 0:01:42]} 1-0

[Event "ESTCC-50 2025"]
[Site "Swidnica"]
[Date "2025.04.12"]
[Round "8.6"]
[White "Fletcher, John"]
[Black "Duncan, Chris R"]
[Result "1/2-1/2"]
[Annotator "ChessBase"]
[ECO "D00"]
[WhiteElo "1989"]
[BlackElo "2178"]
[PlyCount "58"]
[EventDate "2025.04.05"]
[EventType "team-tourn"]
[EventCountry "POL"]
[SourceTitle "playchess.com"]
[Source "ChessBase"]
[SourceQuality "1"]
[WhiteTeam "Wales"]
[BlackTeam "England"]
[WhiteTeamCountry "WLS"]
[BlackTeamCountry "ENG"]
[TimeControl "40/5400+30:1800+30"]

1. d4 {[%emt 0:00:03]} d5 {[%emt 0:00:05]} 2. Bf4 {[%emt 0:00:38]} c5 {[%emt 0:00:19]} 3. e3 {[%emt 0:00:12]} cxd4 {[%emt 0:00:16]} 4. exd4 {[%emt 0:00:10]} Nc6 {[%emt 0:00:06]} 5. Nf3 {[%emt 0:00:14]} Bf5 {[%emt 0:00:47]} 6. c3 {[%emt 0:03:58]} e6 {[%emt 0:00:43]} 7. Bd3 {[%emt 0:02:48]} Bxd3 {[%emt 0:02:15]} 8. Qxd3 {[%emt 0:00:10]} Bd6 {[%emt 0:00:10]} 9. Bxd6 {[%emt 0:04:08]} Qxd6 {[%emt 0:00:02]} 10. O-O {[%emt 0:00:25]} Nf6 {[%emt 0:00:19]} 11. Nbd2 {[%emt 0:01:04]} O-O {[%emt 0:00:18]} 12. Rfe1 {[%emt 0:00:07]} Rae8 {[%emt 0:04:41]} 13. Ne5 {[%emt 0:04:33]} Nd7 {[%emt 0:01:06]} 14. Nxd7 {[%emt 0:01:44]} Qxd7 {[%emt 0:00:03]} 15. f4 {[%emt 0:00:20]} Qd6 {[%emt 0:04:26]} 16. Rf1 {[%emt 0:04:29]} f6 {[%emt 0:04:30]} 17. Rae1 {[%emt 0:05:07]} Re7 {[%emt 0:07:18]} 18. Qg3 {[%emt 0:29:13]} Rfe8 {[%emt 0:03:23]} 19. Re3 {[%emt 0:01:15]} Nd8 {[%emt 0:19:43]} 20. Nb3 {[%emt 0:09:22]} Nf7 {[%emt 0:19:29]} 21. Rfe1 {[%emt 0:03:13]} Nh6 {[%emt 0:02:28]} 22. R3e2 {[%emt 0:04:28]} b6 {[%emt 0:04:26]} 23. Nc1 {[%emt 0:02:17]} Qc7 {[%emt 0:01:22]} 24. Nd3 {[%emt 0:01:15]} Qc4 {[%emt 0:02:36]} 25. a3 {[%emt 0:02:10]} Qc7 {[%emt 0:01:44]} 26. Qf3 {[%emt 0:01:44]} Nf5 {[%emt 0:01:41]} 27. g4 {[%emt 0:01:43]} Nh4 {[%emt 0:03:05]} 28. Qf2 {[%emt 0:04:14]} Ng6 {[%emt 0:00:47]} 29. f5 {[%emt 0:01:19]} exf5 {[%emt 0:03:46]} 1/2-1/2

[Event "ESTCC-50 2025"]
[Site "Swidnica"]
[Date "2025.04.12"]
[Round "8.7"]
[White "Crocker, Philip J"]
[Black "Adams, Mark"]
[Result "1-0"]
[Annotator "ChessBase"]
[ECO "A29"]
[WhiteElo "2137"]
[BlackElo "1916"]
[PlyCount "111"]
[EventDate "2025.04.05"]
[EventType "team-tourn"]
[EventCountry "POL"]
[SourceTitle "playchess.com"]
[Source "ChessBase"]
[SourceQuality "1"]
[WhiteTeam "England"]
[BlackTeam "Wales"]
[WhiteTeamCountry "ENG"]
[BlackTeamCountry "WLS"]
[TimeControl "40/5400+30:1800+30"]

1. c4 {[%emt 0:00:03]} e5 {[%emt 0:00:22]} 2. Nc3 {[%emt 0:00:11]} Nf6 {[%emt 0:00:12]} 3. Nf3 {[%emt 0:00:22]} Nc6 {[%emt 0:00:22]} 4. g3 {[%emt 0:00:18]} d5 {[%emt 0:00:28]} 5. cxd5 {[%emt 0:00:05]} Nxd5 {[%emt 0:00:06]} 6. Bg2 {[%emt 0:00:16]} Nb6 {[%emt 0:00:12]} 7. O-O {[%emt 0:00:20]} Be7 {[%emt 0:01:35]} 8. a3 {[%emt 0:00:21]} O-O {[%emt 0:00:25]} 9. d3 {[%emt 0:00:04]} Be6 {[%emt 0:00:13]} 10. Be3 {[%emt 0:01:13]} f6 {[%emt 0:01:09]} 11. Rc1 {[%emt 0:01:27]} Qd7 {[%emt 0:12:41]} 12. Ne4 {[%emt 0:04:48]} Rad8 {[%emt 0:08:11]} 13. Bc5 {[%emt 0:02:52]} Bd5 {[%emt 0:08:11]} 14. Bxe7 {[%emt 0:02:09]} Qxe7 {[%emt 0:05:06]} 15. Nc5 {[%emt 0:01:19]} Nb8 {[%emt 0:01:02]} 16. Nd2 {[%emt 0:09:15]} c6 {[%emt 0:03:08]} 17. b4 {[%emt 0:02:40]} Rfe8 {[%emt 0:04:55]} 18. Qc2 {[%emt 0:04:10]} Nc8 {[%emt 0:05:19]} 19. Nc4 {[%emt 0:03:55]} Kh8 {[%emt 0:02:50]} 20. Ne3 {[%emt 0:01:28]} Bxg2 {[%emt 0:01:28]} 21. Nf5 {[%emt 0:05:18]} Qf7 {[%emt 0:00:08]} 22. Kxg2 {[%emt 0:00:19]} g6 {[%emt 0:00:40]} 23. Ne3 {[%emt 0:00:51]} Nd6 {[%emt 0:00:41]} 24. Nc4 {[%emt 0:05:01]} b6 {[%emt 0:09:27]} 25. Nxd6 {[%emt 0:02:04]} Rxd6 {[%emt 0:00:08]} 26. Qb3 {[%emt 0:02:46]} Qxb3 {[%emt 0:03:14]} 27. Nxb3 {[%emt 0:00:03]} Kg7 {[%emt 0:00:31]} 28. Rc4 {[%emt 0:02:59]} f5 {[%emt 0:01:29]} 29. Rfc1 {[%emt 0:01:04]} Red8 {[%emt 0:02:51]} 30. h4 {[%emt 0:04:10]} Kf6 {[%emt 0:01:48]} 31. Kf3 {[%emt 0:02:01]} h6 {[%emt 0:01:42]} 32. Ke3 {[%emt 0:00:58]} Re6 {[%emt 0:03:57]} 33. f3 {[%emt 0:01:17]} h5 {[%emt 0:02:57]} 34. Kf2 {[%emt 0:03:22]} Rdd6 {[%emt 0:08:57]} 35. g4 {[%emt 0:06:55]} hxg4 {[%emt 0:00:35]} 36. fxg4 {[%emt 0:00:03]} b5 {[%emt 0:01:24]} 37. g5+ {[%emt 0:01:14]} Kf7 {[%emt 0:00:57]} 38. R4c3 {[%emt 0:00:24]} Ke8 39. e4 {[%emt 0:02:27]} fxe4 {[%emt 0:07:07]} 40. Nc5 {[%emt 0:00:00]} Re7 {[%emt 0:00:00]} 41. Nxe4 {[%emt 0:04:18]} Rd4 {[%emt 0:06:44]} 42. Ke3 {[%emt 0:00:50]} Kf8 {[%emt 0:02:53]} 43. Rf1+ {[%emt 0:01:25]} Rf7 {[%emt 0:01:42]} 44. Rcc1 {[%emt 0:02:36]} Rdd7 {[%emt 0:05:38]} 45. Rxf7+ {[%emt 0:01:59]} Rxf7 {[%emt 0:01:21]} 46. Nf6 {[%emt 0:02:07]} Ke7 {[%emt 0:00:12]} 47. Rc5 {[%emt 0:01:05]} Kd6 {[%emt 0:01:18]} 48. Ke4 {[%emt 0:01:20]} Re7 {[%emt 0:00:26]} 49. Rc1 {[%emt 0:04:02]} a5 {[%emt 0:01:57]} 50. bxa5 {[%emt 0:01:25]} Ra7 {[%emt 0:00:07]} 51. h5 {[%emt 0:02:02]} gxh5 {[%emt 0:00:25]} 52. Kf5 {[%emt 0:01:34]} Ke7 {[%emt 0:03:08]} 53. g6 {[%emt 0:01:39]} Kf8 {[%emt 0:01:05]} 54. Rh1 {[%emt 0:01:21]} Nd7 {[%emt 0:02:48]} 55. Rxh5 {[%emt 0:02:08]} Nxf6 {[%emt 0:00:51]} 56. Kxf6 {[%emt 0:00:19]} 1-0

[Event "ESTCC-50 2025"]
[Site "Swidnica"]
[Date "2025.04.12"]
[Round "8.8"]
[White "Van Kemenade, Rudy"]
[Black "Noyce, Robert C"]
[Result "1-0"]
[Annotator "NA"]
[ECO "A83"]
[WhiteElo "1945"]
[BlackElo "2065"]
[PlyCount "99"]
[EventDate "2025.04.05"]
[EventType "team-tourn"]
[EventCountry "POL"]
[SourceTitle "playchess.com"]
[Source "ChessBase"]
[SourceQuality "1"]
[WhiteTeam "Wales"]
[BlackTeam "England"]
[WhiteTeamCountry "WLS"]
[BlackTeamCountry "ENG"]
[TimeControl "40/5400+30:1800+30"]

1. d4 {[%emt 0:00:04]} f5 {[%emt 0:00:10]} 2. e4 {[%emt 0:00:07]} fxe4 {[%emt 0:00:07]} 3. Nc3 {[%emt 0:00:06]} Nf6 {[%emt 0:00:15]} 4. Bg5 {[%emt 0:00:06]} g6 {[%emt 0:04:20]} 5. Bxf6 {[%emt 0:00:39]} exf6 {[%emt 0:00:20]} 6. Nxe4 {[%emt 0:00:08]} Qe7 {[%emt 0:21:02]} 7. Qe2 {[%emt 0:01:04]} f5 {[%emt 0:01:05]} 8. Nf6+ {[%emt 0:00:39]} Kd8 {[%emt 0:06:41]} 9. Nd5 {[%emt 0:01:14]} Qxe2+ {[%emt 0:00:44]} 10. Bxe2 {[%emt 0:00:12]} c6 {[%emt 0:01:01]} 11. Ne3 {[%emt 0:00:39]} d6 {[%emt 0:07:04]} 12. Nf3 {[%emt 0:01:26]} Be7 {[%emt 0:01:12]} 13. O-O-O {[%emt 0:04:23]} f4 {[%emt 0:03:45]} 14. Nc4 {[%emt 0:01:56]} Bf5 {[%emt 0:00:25]} 15. d5 {[%emt 0:01:22]} c5 {[%emt 0:01:44]} 16. Rhe1 {[%emt 0:01:29]} Nd7 {[%emt 0:05:24]} 17. h3 {[%emt 0:02:24]} Re8 {[%emt 0:05:25]} 18. Bd3 {[%emt 0:00:46]} Bxd3 {[%emt 0:00:53]} 19. Rxd3 {[%emt 0:00:24]} Kc7 {[%emt 0:16:50]} 20. a4 {[%emt 0:02:52]} Bf6 {[%emt 0:08:54]} 21. Re6 {[%emt 0:02:24]} Be5 {[%emt 0:02:07]} 22. Rd1 {[%emt 0:04:24]} Nf8 {[%emt 0:01:26]} 23. Rxe8 {[%emt 0:01:09]} Rxe8 {[%emt 0:00:01]} 24. Re1 {[%emt 0:06:42]} Nd7 {[%emt 0:00:01]} 25. Kd1 {[%emt 0:00:48]} Nb6 {[%emt 0:01:22]} 26. Nxb6 {[%emt 0:00:16]} axb6 {[%emt 0:00:08]} 27. b3 {[%emt 0:00:24]} Kd7 {[%emt 0:00:18]} 28. c4 {[%emt 0:00:42]} h6 {[%emt 0:03:39]} 29. Nh2 {[%emt 0:04:31]} Bd4 {[%emt 0:02:54]} 30. Rxe8 {[%emt 0:00:45]} Kxe8 {[%emt 0:00:01]} 31. Ke2 {[%emt 0:00:22]} Kf7 {[%emt 0:01:00]} 32. Nf3 {[%emt 0:01:30]} Bc3 {[%emt 0:01:45]} 33. Kd3 {[%emt 0:00:10]} Bb2 {[%emt 0:01:22]} 34. Ke4 {[%emt 0:02:48]} g5 {[%emt 0:00:03]} 35. Kf5 {[%emt 0:00:29]} Bc3 {[%emt 0:01:22]} 36. h4 {[%emt 0:02:46]} gxh4 {[%emt 0:00:17]} 37. Kxf4 {[%emt 0:00:22]} h3 {[%emt 0:00:19]} 38. gxh3 {[%emt 0:00:11]} Kf6 {[%emt 0:00:17]} 39. Kg4 {[%emt 0:02:23]} Kg6 {[%emt 0:00:47]} 40. Nh4+ {[%emt 0:00:00]} Kf6 {[%emt 0:00:00]} 41. Nf5 {[%emt 0:02:26]} h5+ {[%emt 0:06:49]} 42. Kf4 {[%emt 0:00:17]} Be5+ {[%emt 0:01:19]} 43. Ke4 {[%emt 0:00:37]} Kg5 {[%emt 0:01:07]} 44. h4+ {[%emt 0:02:07]} Kg4 {[%emt 0:00:46]} 45. f3+ {[%emt 0:00:13]} Kh3 {[%emt 0:00:42]} 46. f4 {[%emt 0:00:09]} Bf6 {[%emt 0:04:18]} 47. Nxd6 {[%emt 0:00:08]} Kxh4 {[%emt 0:06:20]} 48. Kf3 {[%emt 0:03:17]} Kh3 {[%emt 0:00:53]} 49. Ne4 {[%emt 0:00:28]} Bd8 {[%emt 0:00:17]} 50. f5 {[%emt 0:00:40]} 1-0